Workbook

Sheet 表2-本會職員各官等性別比例
A1: 本會職員各官等性別比例
Z2: 表2
A3: 年別 | B3: 總計 | G3: 特任 | L3: 簡任 | Q3: 薦任 | V3: 委任
B4: 小計 | C4: 男 | E4: 女 | G4: 小計 | H4: 男 | J4: 女 | L4: 小計 | M4: 男 | O4: 女 | Q4: 小計 | R4: 男 | T4: 女 | V4: 小計 | W4: 男 | Y4: 女
B5: 人數 | C5: 人數 | D5: 比例 | E5: 人數 | F5: 比例 | G5: 人數 | H5: 人數 | I5: 比例 | J5: 人數 | K5: 比例 | L5: 人數 | M5: 人數 | N5: 比例 | O5: 人數 | P5: 比例 | Q5: 人數 | R5: 人數 | S5: 比例 | T5: 人數 | U5: 比例 | V5: 人數 | W5: 人數 | X5: 比例 | Y5: 人數 | Z5: 比例
A6: 99年 | B6: =SUM(C6+E6) -> 151 | C6: 102 | D6: =SUM(C6/B6) -> 68% | E6: 49 | F6: =SUM(E6/B6) -> 32% | G6: =SUM(H6+J6) -> 1 | H6: 1 | I6: =SUM(H6/G6) -> 100% | J6: 0 | K6: =SUM(J6/G6) -> 0% | L6: =SUM(M6+O6) -> 37 | M6: 29 | N6: =SUM(M6/L6) -> 78% | O6: 8 | P6: =SUM(O6/L6) -> 22% | Q6: =SUM(R6+T6) -> 101 | R6: 69 | S6: =SUM(R6/Q6) -> 68% | T6: 32 | U6: =SUM(T6/Q6) -> 32% | V6: =SUM(W6+Y6) -> 12 | W6: 3 | X6: =SUM(W6/V6) -> 25% | Y6: 9 | Z6: =SUM(Y6/V6) -> 75%
A7: 100年 | B7: =SUM(C7+E7) -> 141 | C7: 95 | D7: 67% | E7: 46 | F7: 33% | G7: 1 | H7: 1 | I7: 100% | J7: 0 | K7: 0% | L7: =SUM(M7+O7) -> 34 | M7: 25 | N7: 74% | O7: 9 | P7: 26% | Q7: =SUM(R7+T7) -> 97 | R7: 66 | S7: 68% | T7: 31 | U7: 32% | V7: =SUM(W7+Y7) -> 9 | W7: 3 | X7: 33% | Y7: 6 | Z7: 67%
A8: 101年 | B8: 139 | C8: 94 | D8: 68% | E8: 45 | F8: 32% | G8: 1 | H8: 1 | I8: 100% | J8: 0 | K8: 0% | L8: 30 | M8: 22 | N8: 73% | O8: 8 | P8: 27% | Q8: 101 | R8: 69 | S8: 68% | T8: 32 | U8: 32% | V8: 7 | W8: 2 | X8: 29% | Y8: 5 | Z8: 71%
A9: 102年 | B9: 130 | C9: 92 | D9: 71% | E9: 38 | F9: 29% | G9: 1 | H9: 1 | I9: 100% | J9: 0 | K9: 0% | L9: 28 | M9: 23 | N9: 82% | O9: 5 | P9: 18% | Q9: 95 | R9: 66 | S9: 69% | T9: 29 | U9: 31% | V9: 6 | W9: 2 | X9: 33% | Y9: 4 | Z9: 67%
A10: 103年 | B10: 120 | C10: 85 | D10: 71% | E10: 35 | F10: 29% | G10: 1 | H10: 1 | I10: 100% | J10: 0 | K10: 0% | L10: 27 | M10: 22 | N10: 81% | O10: 5 | P10: 19% | Q10: 87 | R10: 61 | S10: 70% | T10: 26 | U10: 30% | V10: 5 | W10: 1 | X10: 20% | Y10: 4 | Z10: 80%
A11: 104年 | B11: 119 | C11: 85 | D11: 71% | E11: 34 | F11: 29% | G11: 1 | H11: 1 | I11: 100% | J11: 0 | K11: 0% | L11: 28 | M11: 22 | N11: 79% | O11: 6 | P11: 21% | Q11: 85 | R11: 61 | S11: 72% | T11: 24 | U11: 28% | V11: 5 | W11: 1 | X11: 20% | Y11: 4 | Z11: 80%
A12: 105年 | B12: 115 | C12: 83 | D12: 72% | E12: 32 | F12: 28% | G12: 1 | H12: 1 | I12: 100% | J12: 0 | K12: 0% | L12: 29 | M12: 23 | N12: 79% | O12: 6 | P12: 21% | Q12: 79 | R12: 58 | S12: 73% | T12: 21 | U12: 27% | V12: 6 | W12: 1 | X12: 17% | Y12: 5 | Z12: 83%
A13: 106年 | B13: 119 | C13: 83 | D13: 70% | E13: 36 | F13: 30% | G13: 1 | H13: 1 | I13: 100% | J13: 0 | K13: 0% | L13: 29 | M13: 22 | N13: 76% | O13: 7 | P13: 24% | Q13: 85 | R13: 59 | S13: 69% | T13: 26 | U13: 31% | V13: 4 | W13: 1 | X13: 25% | Y13: 3 | Z13: 75%
A14: 107年 | B14: =SUM(C14+E14) -> 122 | C14: 85 | D14: 70% | E14: 37 | F14: 30% | G14: =SUM(H14+J14) -> 1 | H14: 1 | I14: 100% | J14: 0 | K14: 0% | L14: 29 | M14: 22 | N14: 76% | O14: 7 | P14: 24% | Q14: =SUM(R14+T14) -> 88 | R14: 61 | S14: 69% | T14: 27 | U14: 31% | V14: =SUM(W14+Y14) -> 4 | W14: 1 | X14: 25% | Y14: 3 | Z14: 75%
A15: 108年 | B15: =SUM(C15+E15) -> 122 | C15: =H15+M15+R15+W15 -> 85 | D15: 70% | E15: 37 | F15: 30% | G15: =SUM(H15+J15) -> 1 | H15: 1 | I15: 100% | J15: 0 | K15: 0% | L15: =SUM(M15+O15) -> 29 | M15: 21 | N15: 72% | O15: 8 | P15: 28% | Q15: =SUM(R15+T15) -> 89 | R15: 62 | S15: 70% | T15: 27 | U15: 30% | V15: =SUM(W15+Y15) -> 3 | W15: 1 | X15: 33% | Y15: 2 | Z15: 67%
A16: 109年 | B16: =SUM(C16+E16) -> 128 | C16: =H16+M16+R16+W16 -> 89 | D16: =SUM(C16/B16) -> 70% | E16: =J16+O16+T16+Y16 -> 39 | F16: =SUM(E16/B16) -> 30% | G16: =SUM(H16+J16) -> 1 | H16: 1 | I16: =SUM(H16/G16) -> 100% | J16: 0 | K16: =SUM(J16/G16) -> 0% | L16: =SUM(M16+O16) -> 29 | M16: 21 | N16: =SUM(M16/L16) -> 72% | O16: 8 | P16: =SUM(O16/L16) -> 28% | Q16: =SUM(R16+T16) -> 95 | R16: 66 | S16: =SUM(R16/Q16) -> 69% | T16: 29 | U16: =SUM(T16/Q16) -> 31% | V16: =SUM(W16+Y16) -> 3 | W16: 1 | X16: =SUM(W16/V16) -> 33% | Y16: 2 | Z16: =SUM(Y16/V16) -> 67%
A17: 110年 | B17: =SUM(C17+E17) -> 130 | C17: =H17+M17+R17+W17 -> 87 | D17: =SUM(C17/B17) -> 67% | E17: =J17+O17+T17+Y17 -> 43 | F17: =SUM(E17/B17) -> 33% | G17: =SUM(H17+J17) -> 1 | H17: 1 | I17: =SUM(H17/G17) -> 100% | J17: 0 | K17: =SUM(J17/G17) -> 0% | L17: =SUM(M17+O17) -> 32 | M17: 22 | N17: =SUM(M17/L17) -> 69% | O17: 10 | P17: =SUM(O17/L17) -> 31% | Q17: =SUM(R17+T17) -> 94 | R17: 64 | S17: =SUM(R17/Q17) -> 68% | T17: 30 | U17: =SUM(T17/Q17) -> 32% | V17: =SUM(W17+Y17) -> 3 | W17: 0 | X17: =SUM(W17/V17) -> 0% | Y17: 3 | Z17: =SUM(Y17/V17) -> 100%
A18: 111年 | B18: 136 | C18: =H18+M18+R18+W18 -> 93 | D18: =SUM(C18/B18) -> 68% | E18: =J18+O18+T18+Y18 -> 43 | F18: =SUM(E18/B18) -> 32% | G18: 1 | H18: 1 | I18: =SUM(H18/G18) -> 100% | J18: 0 | K18: =SUM(J18/G18) -> 0% | L18: =SUM(M18+O18) -> 32 | M18: 22 | N18: =SUM(M18/L18) -> 69% | O18: 10 | P18: =SUM(O18/L18) -> 31% | Q18: =SUM(R18+T18) -> 99 | R18: 69 | S18: =SUM(R18/Q18) -> 70% | T18: 30 | U18: =SUM(T18/Q18) -> 30% | V18: =SUM(W18+Y18) -> 4 | W18: 1 | X18: =SUM(W18/V18) -> 25% | Y18: 3 | Z18: =SUM(Y18/V18) -> 75%
A19: 112年 | B19: 131 | C19: 89 | D19: =SUM(C19/B19) -> 68% | E19: 42 | F19: =SUM(E19/B19) -> 32% | G19: 1 | H19: 1 | I19: =SUM(H19/G19) -> 100% | J19: 0 | K19: =SUM(J19/G19) -> 0% | L19: 34 | M19: 25 | N19: =SUM(M19/L19) -> 74% | O19: 9 | P19: =SUM(O19/L19) -> 26% | Q19: 90 | R19: 61 | S19: =SUM(R19/Q19) -> 68% | T19: 29 | U19: =SUM(T19/Q19) -> 32% | V19: 6 | W19: 2 | X19: =SUM(W19/V19) -> 33% | Y19: 4 | Z19: =SUM(Y19/V19) -> 67%
A20: 113年 | B20: 149 | C20: 104 | D20: 70% | E20: 45 | F20: 30% | G20: 1 | H20: 1 | I20: =SUM(H20/G20) -> 100% | J20: 0 | K20: =SUM(J20/G20) -> 0% | L20: 37 | M20: 28 | N20: =SUM(M20/L20) -> 76% | O20: 9 | P20: =SUM(O20/L20) -> 24% | Q20: 104 | R20: 71 | S20: =SUM(R20/Q20) -> 68% | T20: 33 | U20: =SUM(T20/Q20) -> 32% | V20: 7 | W20: 4 | X20: =SUM(W20/V20) -> 57% | Y20: 3 | Z20: =SUM(Y20/V20) -> 43%
A21: 資料來源：人事室
A22: 備註： 1.性別資料使用： (1)因本會業務性質為政府採購與公共工程業務之督導協調，且職員為本會業務推動之主要人力，須進用具工程、土木、水利、經建、法制等專業背景人員，又以目前工程專業人員仍以男性居多，至本會女性人員以經建、法制及行政專業居多，與表1相較，本表扣除聘用及工級人員後，本會職員男女比例近年穩定維持約7：3之比例。 (2)本會僅有特任人員1人，為男性；因本會以工程專業人員居多，目前工程專業人員仍以男性為主，爰女性簡任人數較低。 (3)薦任人員男女比例約7：3，與本會職員男女比例7：3相符；至委任人員僅7人，相較之下女性比例較高。 2.應用深化：受限於政府人事法制，在相關職缺公告、進用及陞遷時均不得限制性別，惟本會各類人員之男女比例及晉升情形，可做為本會規劃相關委員會委員組成（如人事甄審考績委員會）人數及比例之參據，並可提供首長勾選外補或陞遷人選之參考。 3.未進行國際性別統計比較原因說明：茲考量其他國家政府組織型態、功能任務迥異，爰未能就與本會業務性質與角色功能完全相同之國外政府機關進行國際比較。
